[Event "FIDE World School-ch O-17 2025"]
[Site "Vrnjacka Banja"]
[Date "2025.03.21"]
[Round "2.6"]
[White "Elmirzaev, Khondamir"]
[Black "Andjelkovic, Aleksandar M"]
[Result "1-0"]
[Annotator "NA RC"]
[ECO "D45"]
[WhiteElo "2036"]
[BlackElo "1930"]
[PlyCount "75"]
[EventDate "2025.03.19"]
[EventType "swiss"]
[EventCountry "SRB"]
[SourceTitle "playchess.com"]
[Source "ChessBase"]
[SourceQuality "1"]
[TimeControl "5400+30"]

1. Nf3 {[%emt 0:00:11]} d5 {[%emt 0:00:42]} 2. c4 {[%emt 0:00:04]} e6 {[%emt 0:01:42]} 3. e3 {[%emt 0:00:08]} Nf6 {[%emt 0:00:48]} 4. Nc3 {[%emt 0:00:25]} c6 {[%emt 0:07:14]} 5. b3 {[%emt 0:00:08]} Nbd7 {[%emt 0:00:32]} 6. Bb2 {[%emt 0:00:08]} Bd6 {[%emt 0:05:42]} 7. d4 {[%emt 0:00:08]} Qe7 {[%emt 0:00:45]} 8. Qc2 {[%emt 0:02:20]} O-O {[%emt 0:11:30]} 9. Be2 {[%emt 0:00:39]} b6 {[%emt 0:03:44]} 10. O-O {[%emt 0:00:41]} Bb7 {[%emt 0:00:24]} 11. Rfe1 {[%emt 0:04:23]} dxc4 {[%emt 0:06:48]} 12. bxc4 {[%emt 0:00:49]} e5 {[%emt 0:01:04]} 13. Rad1 {[%emt 0:00:56]} Rfe8 {[%emt 0:04:54]} 14. h3 {[%emt 0:04:05]} Rad8 {[%emt 0:03:51]} 15. Bf1 {[%emt 0:07:40]} h6 {[%emt 0:09:36]} 16. a4 {[%emt 0:07:44]} a5 {[%emt 0:05:21]} 17. Ba1 {[%emt 0:05:39]} Qf8 {[%emt 0:03:43]} 18. Na2 {[%emt 0:11:50]} exd4 {[%emt 0:09:40]} 19. exd4 {[%emt 0:00:13]} Bc7 {[%emt 0:04:15]} 20. Nc1 {[%emt 0:03:41]} Nb8 {[%emt 0:02:52]} 21. Nd3 {[%emt 0:04:30]} Na6 {[%emt 0:01:11]} 22. Bc3 {[%emt 0:05:04]} Ne4 {[%emt 0:01:02]} 23. Bb2 {[%emt 0:00:30]} Qd6 {[%emt 0:04:40]} 24. Nde5 {[%emt 0:04:52]} Nf6 {[%emt 0:01:47]} 25. Qb3 {[%emt 0:03:06]} Qb4 {[%emt 0:05:21]} 26. Qa2 {[%emt 0:01:43]} Nd7 {[%emt 0:01:05]} 27. Nxf7 {[%emt 0:11:14]} Kxf7 {[%emt 0:02:43]} 28. c5+ {[%emt 0:00:12]} Kf8 {[%emt 0:00:35]} 29. Ba3 {[%emt 0:00:44]} Qxa4 {[%emt 0:00:30]} 30. cxb6+ {[%emt 0:00:20]} Nb4 {[%emt 0:00:05]} 31. bxc7 {[%emt 0:00:27]} Ra8 {[%emt 0:00:56]} 32. Nh4 {[%emt 0:05:10]} g5 {[%emt 0:00:04]} 33. Nf5 {[%emt 0:00:16]} c5 {[%emt 0:00:51]} 34. Qb2 {[%emt 0:00:29]} Qc2 {[%emt 0:01:02]} 35. Qxc2 {[%emt 0:00:52]} Nxc2 {[%emt 0:00:07]} 36. Rxe8+ {[%emt 0:00:08]} Rxe8 {[%emt 0:00:15]} 37. Bxc5+ {[%emt 0:01:38]} Nxc5 {[%emt 0:00:06]} 38. dxc5 {[%emt 0:00:05]} 1-0

[Event "FIDE World School-ch O-17 2025"]
[Site "Vrnjacka Banja"]
[Date "2025.03.21"]
[Round "2.7"]
[White "Adilbekuly, Altair"]
[Black "Orgilon Batsaikhan"]
[Result "1/2-1/2"]
[Annotator "NA RC"]
[ECO "B94"]
[WhiteElo "1628"]
[BlackElo "2024"]
[PlyCount "62"]
[EventDate "2025.03.19"]
[EventType "swiss"]
[EventCountry "SRB"]
[SourceTitle "playchess.com"]
[Source "ChessBase"]
[SourceQuality "1"]
[TimeControl "5400+30"]

1. e4 {[%emt 0:00:01]} c5 {[%emt 0:00:06]} 2. Nf3 {[%emt 0:00:05]} d6 {[%emt 0:00:04]} 3. d4 {[%emt 0:00:06]} cxd4 {[%emt 0:00:04]} 4. Nxd4 {[%emt 0:00:02]} Nf6 {[%emt 0:00:06]} 5. Nc3 {[%emt 0:00:04]} a6 {[%emt 0:00:04]} 6. Bg5 {[%emt 0:00:07]} Nbd7 {[%emt 0:00:07]} 7. Bc4 {[%emt 0:00:06]} Qb6 {[%emt 0:00:05]} 8. Bb3 {[%emt 0:00:05]} e6 {[%emt 0:00:05]} 9. Qd2 {[%emt 0:00:19]} Be7 {[%emt 0:00:08]} 10. O-O-O {[%emt 0:00:06]} Nc5 {[%emt 0:00:20]} 11. f3 {[%emt 0:00:21]} Qc7 {[%emt 0:01:26]} 12. g4 {[%emt 0:07:35]} b5 {[%emt 0:02:54]} 13. Be3 {[%emt 0:04:06]} Nfd7 {[%emt 0:09:40]} 14. g5 {[%emt 0:08:26]} b4 {[%emt 0:08:52]} 15. Nce2 {[%emt 0:00:35]} Ne5 {[%emt 0:00:22]} 16. Ng3 {[%emt 0:16:12]} Nxb3+ {[%emt 0:11:59]} 17. axb3 {[%emt 0:00:32]} Bd7 {[%emt 0:00:49]} 18. f4 {[%emt 0:09:32]} Nc6 {[%emt 0:01:08]} 19. Nh5 {[%emt 0:08:18]} Bf8 {[%emt 0:14:00]} 20. Rhf1 {[%emt 0:04:40]} Qb7 {[%emt 0:03:59]} 21. Nxc6 {[%emt 0:14:59]} Bxc6 {[%emt 0:04:11]} 22. Qd4 {[%emt 0:00:08]} Rg8 {[%emt 0:02:19]} 23. Ng3 {[%emt 0:11:12]} a5 {[%emt 0:03:01]} 24. Qb6 {[%emt 0:03:28]} Qc8 {[%emt 0:01:44]} 25. e5 {[%emt 0:05:21]} Ra6 {[%emt 0:17:16]} 26. Qd4 {[%emt 0:00:25]} a4 {[%emt 0:00:26]} 27. bxa4 {[%emt 0:03:45]} Bxa4 {[%emt 0:04:11]} 28. Rf2 {[%emt 0:01:17]} d5 {[%emt 0:03:52]} 29. f5 {[%emt 0:01:18]} Bb3 {[%emt 0:05:48]} 30. Kb1 {[%emt 0:01:09]} Ba2+ {[%emt 0:00:06]} 31. Kc1 {[%emt 0:00:04]} Bb3 {[%emt 0:00:03]} 1/2-1/2

[Event "FIDE World School-ch O-17 2025"]
[Site "Vrnjacka Banja"]
[Date "2025.03.21"]
[Round "2.8"]
[White "Milanovic, Marko"]
[Black "Panda, Barnabas"]
[Result "1-0"]
[Annotator "TA"]
[ECO "C43"]
[WhiteElo "2271"]
[BlackElo "2147"]
[PlyCount "82"]
[EventDate "2025.03.19"]
[EventType "swiss"]
[EventCountry "SRB"]
[SourceTitle "playchess.com"]
[Source "ChessBase"]
[SourceQuality "1"]
[TimeControl "5400+30"]

{[%evp 14,82,35,33,55,0,0,0,0,0,0,0,20,15,18,20,17,20,25,0,50,40,66,-8,29,-1,33,34,36,28,29,29,31,29,40,0,0,-9,205,219,222,205,280,285,262,261,295,285,379,341,504,475,535,501,582,527,495,503,490,500,506,488,577,491,465,381,455,354,390,406,447]} 1. e4 {[%emt 0:01:17]} e5 {[%emt 0:00:09]} 2. Nf3 {[%emt 0:00:27]} Nf6 {[%emt 0:00:14]} 3. d4 {[%emt 0:05:57]} Nxe4 {[%emt 0:00:30]} 4. Bd3 {[%emt 0:00:06]} d5 {[%emt 0:00:10]} 5. Nxe5 {[%emt 0:00:14]} Nd7 {[%emt 0:02:14]} 6. Nxd7 {[%emt 0:04:32]} Bxd7 {[%emt 0:00:23]} 7. O-O {[%emt 0:00:54]} Bd6 {[%emt 0:05:52]} 8. Qh5 {[%emt 0:19:43]} c6 {[%emt 0:10:20] C43: Petroff Defence: 3 d4.} 9. Re1 {[%emt 0:06:48]} (9. Bxe4 $14 dxe4 10. Nd2) 9... O-O $11 {[%emt 0:02:34]} 10. Bxe4 {[%emt 0:02:34]} dxe4 {[%emt 0:00:16] The position is equal.} 11. Rxe4 {[%emt 0:01:18]} Qf6 $146 {[%emt 0:04:25] Black sacrificed a pawn} (11... Re8 12. Rxe8+ Qxe8 13. Be3 Qe4 14. Qd1 Bg4 15. Qc1 Bf5 16. c4 Qh4 17. g3 Qh5 {½-½ Xie,J (2553)-Karpov,A (2692) Najdorf Memorial 12th 2001 (6)}) 12. Nc3 {[%emt 0:09:21]} Bf5 {[%emt 0:05:37]} 13. Bg5 {[%emt 0:03:14]} Qg6 {[%emt 0:08:33]} 14. Qxg6 {[%emt 0:00:19]} Bxg6 {[%emt 0:00:10] This pair of bishops is nice.} 15. Re2 {[%emt 0:02:07]} f6 {[%emt 0:01:59]} 16. Bh4 {[%emt 0:08:50]} Bb4 {[%emt 0:14:31]} ({Black should try} 16... Rae8 $11) 17. Ne4 $14 {[%emt 0:10:38]} f5 {[%emt 0:07:02]} 18. Ng5 {[%emt 0:07:24]} (18. Nc5 $14) 18... Rae8 {[%emt 0:04:56]} 19. Re5 {[%emt 0:06:45]} Rxe5 {[%emt 0:09:45]} 20. dxe5 {[%emt 0:00:02]} Rd8 {[%emt 0:00:27]} 21. Nf3 {[%emt 0:01:16]} Rd5 {[%emt 0:00:56]} 22. a3 {[%emt 0:02:06]} Bc5 {[%emt 0:01:57]} 23. Re1 {[%emt 0:03:48]} Bh5 {[%emt 0:03:44]} 24. c4 {[%emt 0:00:42]} Rd3 {[%emt 0:00:38]} 25. e6 {[%emt 0:00:28]} Bxf3 $2 {[%emt 0:00:20] [#] Black cannot hold the game after this.} (25... Bd6 $1 $11 {and Black is okay.}) 26. gxf3 $11 {[%emt 0:00:08][%mdl 4096] Endgame KRB-KRB. White is a pawn up.} Kf8 {[%emt 0:08:38][%cal Of8e8]} 27. Re5 $1 {[%emt 0:00:50][%csl LRc5,LRf5]} b6 {[%emt 0:03:05]} 28. Rxf5+ {[%emt 0:00:22]} Ke8 {[%emt 0:00:08]} 29. Rf7 {[%emt 0:01:37]} Rd4 {[%emt 0:02:02]} 30. Bg3 {[%emt 0:00:31]} h5 {[%emt 0:02:21]} 31. b4 {[%emt 0:00:53]} Bf8 {[%emt 0:01:16]} (31... h4 $142 32. Be5 Rd1+ 33. Kg2 Bd6) 32. Rxa7 $18 {[%emt 0:00:31]} Rxc4 {[%emt 0:00:26]} 33. Be5 {[%emt 0:00:34]} Rc1+ {[%emt 0:00:39]} 34. Kg2 {[%emt 0:00:03]} Re1 {[%emt 0:00:11]} 35. f4 {[%emt 0:00:35][%cal Bf3f4,Bf4g5][%mdl 32]} (35. Bxg7 Bxg7 36. Rxg7 Rxe6 $18) 35... g5 {[%emt 0:00:57]} 36. Bc3 {[%emt 0:01:00]} Rxe6 {[%emt 0:00:18]} 37. fxg5 {[%emt 0:00:09]} Be7 {[%emt 0:00:23]} 38. h4 {[%emt 0:00:39]} Re4 {[%emt 0:00:12]} 39. Kh3 {[%emt 0:00:39]} Rf4 {[%emt 0:01:42]} 40. Be1 {[%emt 0:00:33]} Rd4 {[%emt 0:00:00]} 41. f3 {[%emt 0:00:25]} Rd1 {[%emt 0:01:00] Weighted Error Value: White=0.18 (very precise) /Black=0.35  Loses game:     	---       	Black=1      Mistake:       	White=2     	Black=2      Inaccurate:     	White=2     	Black=5      OK:         	White=15    	Black=8      Best:        	White=2     	Black=3} 1-0